fUST/lending_fUST_20240619
["ID","MTS","AMOUNT","RATE_DAILY","PERIOD"]
[329877701,1718782138153,-4967.38146851,0.00041,60]
[329877702,1718782138178,-152.0,0.00041041,31]
[329877703,1718782138202,-400.0,0.00041096,60]
[329877704,1718782138227,-1606.889045,0.00041096,120]
[329877705,1718782138251,-4273.6410009,0.00041233,60]
[329877706,1718782138274,-151.0,0.0004137,120]
[329877707,1718782138300,-152.0,0.00041694,31]
[329877708,1718782138326,-300.0,0.00042,120]
[329877709,1718782138351,-151.0,0.00042055,120]
[329877710,1718782138377,-152.0,0.00042347,31]
[329877711,1718782138402,-117112.30246507,0.00042385,120]
[329877712,1718782138427,-1649.62448974,0.000424,120]
[329877713,1718782138452,-1962.5884551,0.000425,30]
[329877714,1718782138476,-151.0,0.0004274,120]
[329877715,1718782138501,-1000.0,0.00042999,120]
[329877716,1718782138525,-5662.35294225,0.00043,30]
[329877717,1718782138550,-1537.06706703,0.00043,120]
[329877718,1718782138575,-152.0,0.00043,31]
[329877719,1718782138600,-151.0,0.00043425,120]
[329877720,1718782138624,-1000.0,0.000438,60]
[329877721,1718782138648,-410.20875812,0.00043836,60]
[329877722,1718782138676,-175.12087576,0.00044,120]
[329877723,1718782138701,-151.0,0.0004411,120]
[329877724,1718782138726,-151.0,0.00044795,120]
[329877725,1718782138751,-9537.28812158,0.0004484,120]
[329877726,1718782138776,-1501.0,0.00045,40]
[329877727,1718782138802,-3146.54734369,0.00045,120]
[329877728,1718782138827,-40020.76814557,0.00045,120]
[329877729,1718782138857,-151.0,0.00045479,120]
[329877730,1718782138892,-1921.33383378,0.00046,120]
[329877731,1718782138918,-5497.19790402,0.00046,30]
[329877732,1718782138948,-400.79792,0.00046,30]
[329877733,1718782138974,-151.0,0.00046164,120]
[329877734,1718782139000,-4273.6410009,0.00046233,60]
[329877735,1718782139027,-151.0,0.00046849,120]
[329877736,1718782139057,-1530.43940933,0.000473,120]
[329877737,1718782139083,-151.0,0.00047534,120]
[329877738,1718782139110,-1004.74169445,0.00048,60]
[329877739,1718782139135,-1921.33383379,0.00048,120]
[329877740,1718782139159,-400.0,0.00048,30]
[329877741,1718782139185,-151.0,0.00048219,120]
[329877742,1718782139210,-151.0,0.00048904,120]
[329877743,1718782139236,-1000.0,0.00049,49]
[329877744,1718782139264,-500.0,0.00049315,31]
[329877745,1718782139290,-300.21053205,0.00049315,31]
[329877746,1718782139316,-500.0,0.00049315,31]
[329877747,1718782139343,-500.0,0.00049315,31]
[329877748,1718782139367,-500.0,0.00049315,31]
[329877749,1718782139395,-500.0,0.00049315,31]
[329877750,1718782139422,-201.89478846,0.00049315,31]
[329877751,1718782139575,-269.11188944,0.00049315,120]
[329877752,1718782139600,-600.0,0.00049315,120]
[329877753,1718782139626,-540.27873919,0.00049315,120]
[329877754,1718782143782,12151.25781975,0.00029,30]
[329877755,1718782144441,150.5,0.0002599,35]
[329877756,1718782144587,150.5,0.0002599,35]
[329877757,1718782144682,150.5,0.0002599,35]
[329877758,1718782144918,150.5,0.0002599,35]
[329877759,1718782144960,203.78,0.0002599,35]
[329877760,1718782144993,242.87,0.0002599,35]
[329877761,1718782145069,150.5,0.0002598,35]
[329877762,1718782145099,263.73,0.0002598,35]
[329877763,1718782145189,150.5,0.0002599,35]
[329877764,1718782145225,150.5,0.0002598,35]
[329877765,1718782145412,150.5,0.0002598,35]
[329877766,1718782145574,150.5,0.0002597,35]
[329877767,1718782145625,150.5,0.0002599,35]
[329877768,1718782145717,150.5,0.0002597,35]
[329877769,1718782145748,150.5,0.0002598,35]
[329877770,1718782145848,606.0,0.0002599,35]
[329877771,1718782145892,287.31,0.0002597,35]
[329877772,1718782146076,150.5,0.0002989,35]
[329877773,1718782146157,2218.00060067,0.000325,60]
[329877774,1718782146189,150.5,0.0002598,35]
[329877775,1718782146233,150.5,0.0002989,35]
[329877776,1718782146271,150.5,0.0002597,35]
[329877777,1718782146342,606.0,0.0002598,35]
[329877778,1718782146640,177.9,0.0002988,35]
[329877779,1718782146722,150.5,0.0002988,35]
[329877780,1718782146752,150.5,0.0002597,35]
[329877781,1718782146781,150.5,0.0002989,35]
[329877782,1718782146815,606.0,0.0002597,35]
[329877783,1718782147205,150.5,0.0002987,35]
[329877784,1718782147320,606.0,0.0002989,35]
[329877785,1718782147349,150.5,0.0002989,35]
[329877786,1718782147378,150.5,0.0002988,35]
[329877787,1718782147748,150.5,0.0002999,35]
[329877788,1718782147834,205.28,0.0002987,35]
[329877789,1718782147876,606.0,0.0002988,35]
[329877790,1718782147914,150.5,0.0002988,35]
[329877791,1718782148249,224.69,0.0002998,35]
[329877792,1718782148455,606.0,0.0002987,35]
[329877793,1718782149055,606.0,0.0002999,35]
[329877794,1718782149136,236.44,0.0002987,35]
[329877795,1718782149576,606.0,0.0002998,35]
[329877796,1718782151614,312.92341167,0.0004,120]
[329877797,1718782168112,-470.46186201,0.00028175,120]
[329877798,1718782168138,-508.93962742,0.00028175,30]
[329877799,1718782168164,-1327.36784251,0.00028175,30]
[329877800,1718782168190,-1047.23153317,0.00028175,120]
[329877801,1718782168217,-1168.27580168,0.00028175,30]
[329877802,1718782168241,-183.60089433,0.00028175,120]
[329877803,1718782168267,-200.38416512,0.00028175,60]
[329877804,1718782168295,-2300.89181516,0.00028175,30]
[329877805,1718782168322,-250.40951799,0.00028175,120]
[329877806,1718782168347,-229.17573093,0.00028175,30]
[329877807,1718782168370,-1699.82374301,0.00028175,30]
[329877808,1718782168394,-881.8732929,0.00028175,120]
[329877809,1718782168418,-160.0,0.00028175,30]
[329877810,1718782168442,-1000.0,0.00028175,120]
[329877811,1718782168467,-1000.0,0.00028175,120]
[329877812,1718782168491,-2813.26633143,0.00028175,120]
[329877813,1718782168514,-2735.0,0.00028175,30]
[329877814,1718782168538,-218.33579626,0.00028175,120]
[329877815,1718782168560,-24743.73672305,0.00028175,30]
[329877816,1718782168583,-790.18905724,0.00028175,30]
[329877817,1718782168606,-5589.95442213,0.00028175,30]
[329877818,1718782168628,-5018.23048632,0.00028175,30]
[329877819,1718782168652,-768.53353351,0.00028175,120]
[329877820,1718782168676,-172.0463515,0.00028175,120]
[329877821,1718782168701,-1088.86212104,0.00028175,120]
[329877822,1718782168725,-289.9,0.00028175,120]
[329877823,1718782168747,-1194.51715548,0.00028175,30]
[329877824,1718782168770,-488.8178943,0.00028175,120]
[329877825,1718782168797,-153.72335557,0.00028175,30]
[329877826,1718782168821,-153.72335557,0.00028175,30]
[329877827,1718782168845,-153.72335557,0.00028175,30]
[329877828,1718782168870,-153.72335557,0.00028175,30]
[329877829,1718782168895,-153.72335557,0.00028175,30]
[329877830,1718782168920,-153.72335557,0.00028175,30]
[329877831,1718782168948,-153.72335557,0.00028175,30]
[329877832,1718782168975,-153.72335557,0.00028175,30]
[329877833,1718782169000,-153.72335557,0.00028175,30]
[329877834,1718782169029,-153.72335557,0.00028175,30]
[329877835,1718782169057,-153.72335557,0.00028175,30]
[329877836,1718782169083,-153.72335557,0.00028175,30]
[329877837,1718782169107,-153.72335557,0.00028175,30]
[329877838,1718782169131,-153.72335557,0.00028175,30]
[329877839,1718782169154,-153.72335557,0.00028175,30]
[329877840,1718782169177,-153.72335557,0.00028175,30]
[329877841,1718782169201,-153.72335557,0.00028175,30]
[329877842,1718782169224,-153.72335557,0.00028175,30]
[329877843,1718782169248,-153.72335557,0.00028175,30]
[329877844,1718782169272,-153.72335557,0.00028175,30]
[329877845,1718782169297,-153.72335557,0.00028175,30]
[329877846,1718782169323,-153.72335557,0.00028175,30]
[329877847,1718782169349,-153.72335546,0.00028175,30]
[329877848,1718782169374,-400.0,0.00028175,30]
[329877849,1718782169399,-400.0,0.00028175,30]
[329877850,1718782169424,-400.0,0.00028175,30]
[329877851,1718782169448,-601.19688,0.00028175,30]
[329877852,1718782169592,-262.49292999,0.00015202,2]
[329877853,1718782169612,-1985.2962702,0.0001524,2]
[329877854,1718782169633,-452.924637,0.00015437,2]
[329877855,1718782179517,177.38616281,0.00015521,2]
[329877951,1718782238618,-49.07615619,0.00015521,2]
[329877952,1718782238628,-949.61517392,0.00016338,2]
[329877954,1718782238641,-35.17150169,0.00016338,2]
[329877956,1718782238650,-394.58958624,0.00016435,2]
[329877958,1718782238660,-300.0,0.00016436,2]
[329877960,1718782238669,-300.0,0.00016436,2]
[329877962,1718782238678,-8390.38097627,0.00016437,2]
[329877964,1718782238689,-9723.15683629,0.00016437,2]
[329878037,1718782244726,-7252.05848696,0.00016437,2]
[329878040,1718782244738,-684.35160048,0.00016437,2]
[329878043,1718782244748,-159.86205863,0.00016438,2]
[329878045,1718782244757,-500.0,0.00016438,2]
[329878047,1718782244770,-500.0,0.00016438,2]
[329878049,1718782244778,-500.0,0.00016438,2]
[329878051,1718782244787,-500.0,0.00016438,2]
[329878053,1718782244797,-500.0,0.00016438,2]
[329878055,1718782244806,-205.78634072,0.00016438,2]
[329878057,1718782244817,-294.21365928,0.00016438,2]
[329878059,1718782244827,-379.86788808,0.00016438,2]
[329878214,1718782248013,-120.13211192,0.00016438,2]
[329878215,1718782248024,-235.07657302,0.00016438,2]
[329878216,1718782248033,-450.59208416,0.00016438,2]
[329878217,1718782248043,-500.0,0.00016438,2]
[329878218,1718782248056,-500.0,0.00016438,2]
[329878219,1718782248066,-545.19553468,0.00016438,2]
[329878220,1718782248075,-500.0,0.00016438,2]
[329878221,1718782248085,-500.0,0.00016438,2]
[329878222,1718782248094,-500.0,0.00016438,2]
[329878223,1718782248103,-500.0,0.00016438,2]
[329878224,1718782248113,-500.41785223,0.00016438,2]
[329878225,1718782248122,-500.0,0.00016438,2]
[329878226,1718782248132,-500.0,0.00016438,2]
[329878227,1718782248141,-500.0,0.00016438,2]
[329878228,1718782248151,-500.0,0.00016438,2]
[329878229,1718782248160,-500.0,0.00016438,2]
[329878230,1718782248169,-3125.31,0.00016438,2]
[329878231,1718782248178,-716.65,0.00016438,2]
[329878232,1718782248188,-500.0,0.00016438,2]
[329878233,1718782248198,-500.0,0.00016438,2]
[329878234,1718782248207,-500.0,0.00016438,2]
[329878235,1718782248217,-500.0,0.00016438,2]
[329878236,1718782248226,-500.0,0.00016438,2]
[329878237,1718782248235,-823.36,0.00016438,2]
[329878238,1718782248246,-500.0,0.00016438,2]
[329878239,1718782248255,-500.0,0.00016438,2]
[329878240,1718782248268,-4893.68,0.00016438,2]
[329878241,1718782248277,-500.0,0.00016438,2]
[329878242,1718782248287,-500.0,0.00016438,2]
[329878243,1718782248296,-500.0,0.00016438,2]
[329878244,1718782248307,-500.0,0.00016438,2]
[329878245,1718782248316,-509.06943016,0.00016438,2]
[329878246,1718782248326,-500.0,0.00016438,2]
[329878247,1718782248335,-500.0,0.00016438,2]
[329878248,1718782248346,-723.02,0.00016438,2]
[329878249,1718782248355,-504.71375293,0.00016438,2]
[329878250,1718782248364,-500.0,0.00016438,2]
[329878251,1718782248374,-770.09,0.00016438,2]
[329878252,1718782248384,-500.0,0.00016438,2]
[329878253,1718782248394,-500.0,0.00016438,2]
[329878254,1718782248403,-500.0,0.00016438,2]
[329878255,1718782248413,-459.72657828,0.00016438,2]
[329878256,1718782248422,-500.0,0.00016438,2]
[329878257,1718782248432,-500.0,0.00016438,2]
[329878258,1718782248442,-500.0,0.00016438,2]
[329878259,1718782248451,-500.0,0.00016438,2]
[329878260,1718782248460,-630.488031,0.00016438,2]
[329878261,1718782248469,-1112.81,0.00016438,2]
[329878262,1718782248478,-2904.57,0.00016438,2]
[329878263,1718782248490,-2365.03,0.00016438,2]
[329878264,1718782248499,-275.92715152,0.000165,2]
[329878265,1718782248509,-500.0,0.00016708,2]
[329878266,1718782248521,-500.0,0.00016711,2]
[329878267,1718782248532,-500.0,0.00016712,2]
[329878268,1718782248541,-508.50415849,0.00016712,2]
[329878269,1718782248551,-541.58591801,0.00016712,2]
[329878270,1718782248559,-500.0,0.00016712,2]
[329878271,1718782248568,-500.0,0.00016712,2]
[329878272,1718782248578,-500.0,0.00016712,2]
[329878273,1718782248587,-500.0,0.00016712,2]
[329878274,1718782248596,-500.0,0.00016712,2]
[329878275,1718782248605,-627.56409769,0.00016712,2]
[329878276,1718782248615,-500.0,0.00016712,2]
[329878277,1718782248624,-552.53115359,0.00016712,2]
[329878278,1718782248634,-500.0,0.00016712,2]
[329878279,1718782248643,-3125.31,0.00016712,2]
[329878280,1718782248654,-716.65,0.00016712,2]
[329878281,1718782248663,-500.0,0.00016712,2]
[329878282,1718782248673,-500.0,0.00016712,2]
[329878283,1718782248683,-500.0,0.00016712,2]
[329878284,1718782248693,-500.0,0.00016712,2]
[329878285,1718782248702,-823.36,0.00016712,2]
[329878286,1718782248712,-500.0,0.00016712,2]
[329878287,1718782248722,-500.0,0.00016712,2]
[329878288,1718782248731,-4893.68,0.00016712,2]
[329878289,1718782248740,-500.0,0.00016712,2]
[329878290,1718782248750,-500.0,0.00016712,2]
[329878291,1718782248759,-500.0,0.00016712,2]
[329878292,1718782248772,-500.0,0.00016712,2]
[329878293,1718782248781,-723.02,0.00016712,2]
[329878294,1718782248791,-770.09,0.00016712,2]
[329878295,1718782248801,-500.0,0.00016712,2]
[329878296,1718782248811,-500.0,0.00016712,2]
[329878297,1718782248820,-500.0,0.00016712,2]
[329878298,1718782248830,-500.0,0.00016712,2]
[329878299,1718782248840,-500.0,0.00016712,2]
[329878300,1718782248851,-500.0,0.00016712,2]
[329878301,1718782248861,-1112.81,0.00016712,2]
[329878302,1718782248870,-2904.57,0.00016712,2]
[329878303,1718782248879,-2365.03,0.00016712,2]
[329878304,1718782248889,-150.0,0.00016808,2]
[329878305,1718782248898,-1751.0,0.00016808,2]
[329878306,1718782248908,-620.00886741,0.00016862,2]
[329878307,1718782248918,-500.0,0.00016985,2]
[329878308,1718782248927,-532.58386748,0.00016986,2]
[329878309,1718782248937,-500.0,0.00016986,2]
[329878310,1718782248946,-500.0,0.00016986,2]
[329878311,1718782248958,-500.0,0.00016986,2]
[329878312,1718782248970,-500.0,0.00016986,2]
[329878313,1718782248979,-500.0,0.00016986,2]
[329878314,1718782248988,-526.43,0.00016986,2]
[329878315,1718782248999,-500.0,0.00016986,2]
[329878316,1718782249009,-3125.31,0.00016986,2]
[329878317,1718782249022,-716.65,0.00016986,2]
[329878318,1718782249032,-500.0,0.00016986,2]
[329878319,1718782249044,-500.0,0.00016986,2]
[329878320,1718782249053,-500.0,0.00016986,2]
[329878321,1718782249063,-500.0,0.00016986,2]
[329878322,1718782249072,-823.36,0.00016986,2]
[329878323,1718782249083,-500.0,0.00016986,2]
[329878324,1718782249092,-500.0,0.00016986,2]
[329878325,1718782249102,-4893.68,0.00016986,2]
[329878326,1718782249111,-500.0,0.00016986,2]
[329878327,1718782249121,-500.0,0.00016986,2]
[329878328,1718782249131,-500.0,0.00016986,2]
[329878329,1718782249142,-723.02,0.00016986,2]
[329878330,1718782249152,-770.09,0.00016986,2]
[329878331,1718782249161,-500.0,0.00016986,2]
[329878332,1718782249171,-500.0,0.00016986,2]
[329878333,1718782249181,-500.0,0.00016986,2]
[329878334,1718782249191,-500.0,0.00016986,2]
[329878335,1718782249201,-500.0,0.00016986,2]
[329878336,1718782249211,-500.0,0.00016986,2]
[329878337,1718782249221,-1112.81,0.00016986,2]
[329878338,1718782249231,-2904.57,0.00016986,2]
[329878339,1718782249241,-2365.03,0.00016986,2]
[329878340,1718782249252,-153.6086377,0.00017205,2]
[329878341,1718782249261,-500.0,0.00017259,2]
[329878342,1718782249281,-500.0,0.0001726,2]
[329878343,1718782249290,-500.0,0.0001726,2]
[329878344,1718782249300,-500.0,0.0001726,2]
[329878345,1718782249310,-500.0,0.0001726,2]
[329878346,1718782249319,-500.0,0.0001726,2]
[329878347,1718782249329,-500.0,0.0001726,2]
[329878348,1718782249338,-3125.31,0.0001726,2]
[329878349,1718782249348,-716.65,0.0001726,2]
[329878350,1718782249357,-161.97042713,0.0001726,2]
[329878351,1718782249367,-500.0,0.0001726,2]
[329878352,1718782249376,-500.0,0.0001726,2]
[329878353,1718782249385,-500.0,0.0001726,2]
[329878354,1718782249394,-823.36,0.0001726,2]
[329878355,1718782249403,-635.89,0.0001726,2]
[329878356,1718782249412,-649.12061457,0.0001726,2]
[329878357,1718782249421,-4893.68,0.0001726,2]
[329878358,1718782249430,-500.0,0.0001726,2]
[329878359,1718782249440,-500.0,0.0001726,2]
[329878360,1718782249450,-500.0,0.0001726,2]
[329878361,1718782249460,-723.02,0.0001726,2]
[329878362,1718782249469,-770.09,0.0001726,2]
[329878363,1718782249479,-500.0,0.0001726,2]
[329878364,1718782249489,-500.0,0.0001726,2]
[329878365,1718782249498,-500.0,0.0001726,2]
[329878366,1718782249508,-500.0,0.0001726,2]
[329878367,1718782249524,-500.0,0.0001726,2]
[329878368,1718782249534,-500.0,0.0001726,2]
[329878369,1718782249543,-1112.81,0.0001726,2]
[329878370,1718782249552,-2904.57,0.0001726,2]
[329878371,1718782249561,-2365.03,0.0001726,2]
[329878372,1718782249571,-153.0,0.00017315,2]
[329878373,1718782249579,-153.0,0.00017315,2]
[329878374,1718782249588,-153.0,0.00017315,2]
[329878375,1718782249597,-153.0,0.00017315,2]
[329878376,1718782249606,-153.0,0.00017315,2]
[329878377,1718782249615,-153.0,0.00017315,2]
[329878378,1718782249719,-153.0,0.00017315,2]
[329878379,1718782249729,-153.0,0.00017315,2]
[329878380,1718782249740,-153.0,0.00017315,2]
[329878381,1718782249750,-153.0,0.00017315,2]
[329878382,1718782249760,-153.0,0.00017315,2]
[329878383,1718782249777,-153.0,0.00017315,2]
[329878384,1718782249788,-153.0,0.00017315,2]
[329878385,1718782249798,-153.0,0.00017315,2]
[329878386,1718782249807,-153.0,0.00017315,2]
[329878387,1718782249817,-153.0,0.00017315,2]
[329878388,1718782249827,-153.0,0.00017315,2]
[329878389,1718782249837,-153.0,0.00017315,2]
[329878390,1718782249848,-153.0,0.00017315,2]
[329878391,1718782249858,-153.0,0.00017315,2]
[329878392,1718782249868,-153.0,0.00017315,2]
[329878393,1718782249878,-153.0,0.00017315,2]
[329878394,1718782249887,-153.0,0.00017315,2]
[329878395,1718782249897,-153.0,0.00017315,2]
[329878396,1718782249906,-153.0,0.00017315,2]
[329878397,1718782249916,-153.0,0.00017315,2]
[329878398,1718782249926,-153.0,0.00017315,2]
[329878399,1718782249936,-153.0,0.00017315,2]
[329878400,1718782249945,-153.0,0.00017315,2]
[329878401,1718782249956,-153.0,0.00017315,2]
[329878402,1718782249966,-153.0,0.00017315,2]
[329878403,1718782249980,-153.0,0.00017315,2]
[329878404,1718782249990,-153.0,0.00017315,2]
[329878405,1718782250001,-153.0,0.00017315,2]
[329878406,1718782250010,-153.0,0.00017315,2]
[329878407,1718782250025,-177.0,0.0001742,2]
[329878408,1718782250036,-177.0,0.0001742,2]
[329878409,1718782250046,-177.0,0.0001742,2]
[329878410,1718782250057,-177.0,0.0001742,2]
[329878411,1718782250067,-177.0,0.0001742,2]
[329878412,1718782250076,-177.0,0.0001742,2]
[329878413,1718782250086,-177.0,0.0001742,2]
[329878414,1718782250095,-177.0,0.0001742,2]
[329878415,1718782250104,-177.0,0.0001742,2]
[329878416,1718782250114,-177.0,0.0001742,2]
[329878417,1718782250124,-177.0,0.0001742,2]
[329878418,1718782250134,-177.0,0.0001742,2]
[329878419,1718782250144,-177.0,0.0001742,2]
[329878420,1718782250155,-177.0,0.0001742,2]
[329878421,1718782250164,-441.71409361,0.00017499,2]
[329878422,1718782250174,-500.0,0.00017499,2]
[329878423,1718782250184,-500.0,0.00017499,2]
[329878424,1718782250193,-327.83256006,0.000175,15]
[329878425,1718782250202,-73606.80352846,0.000175,2]
[329878426,1718782250211,-500.0,0.00017534,2]
[329878427,1718782250220,-500.0,0.00017534,2]
[329878428,1718782250229,-500.0,0.00017534,2]
[329878429,1718782250238,-3125.31,0.00017534,2]
[329878430,1718782250247,-716.65,0.00017534,2]
[329878431,1718782250256,-500.0,0.00017534,2]
[329878432,1718782250265,-500.0,0.00017534,2]
[329878433,1718782250278,-500.0,0.00017534,2]
[329878434,1718782250287,-823.36,0.00017534,2]
[329878435,1718782250296,-4893.68,0.00017534,2]
[329878436,1718782250305,-500.0,0.00017534,2]
[329878437,1718782250315,-500.0,0.00017534,2]
[329878438,1718782250323,-500.0,0.00017534,2]
[329878439,1718782250334,-723.02,0.00017534,2]
[329878440,1718782250343,-770.09,0.00017534,2]
[329878441,1718782250352,-458.64406423,0.00017534,2]
[329878442,1718782250361,-500.0,0.00017534,2]
[329878443,1718782250371,-500.0,0.00017534,2]
[329878444,1718782250380,-196.53329148,0.00017534,2]
[329878445,1718782250389,-500.0,0.00017534,2]
[329878446,1718782250398,-1112.81,0.00017534,2]
[329878447,1718782250407,-2904.57,0.00017534,2]
[329878448,1718782250416,-2365.03,0.00017534,2]
[329878449,1718782250426,-177.0,0.00017537,2]
[329878450,1718782250435,-177.0,0.00017537,2]
[329878451,1718782250444,-620.00044337,0.00017705,2]
[329878452,1718782250453,-153.0,0.00017753,2]
[329878453,1718782250462,-153.0,0.00017753,2]
[329878454,1718782250471,-153.0,0.00017753,2]
[329878455,1718782250480,-500.0,0.00017808,2]
[329878456,1718782250489,-500.0,0.00017808,2]
[329878457,1718782250498,-500.0,0.00017808,2]
[329878458,1718782250507,-151.0,0.00017808,2]
[329878459,1718782250516,-3125.31,0.00017808,2]
[329878460,1718782250528,-716.65,0.00017808,2]
[329878461,1718782250537,-500.0,0.00017808,2]
[329878462,1718782250546,-500.0,0.00017808,2]
[329878463,1718782250555,-239.44189861,0.00017808,2]
[329878464,1718782250564,-823.36,0.00017808,2]
[329878465,1718782250573,-4893.68,0.00017808,2]
[329878466,1718782250582,-151.0,0.00017808,2]
[329878467,1718782250590,-151.0,0.00017808,2]
[329878468,1718782250599,-500.0,0.00017808,2]
[329878469,1718782250608,-500.0,0.00017808,2]
[329878470,1718782250617,-723.02,0.00017808,2]
[329878471,1718782250626,-770.09,0.00017808,2]
[329878472,1718782250635,-500.0,0.00017808,2]
[329878473,1718782250643,-500.0,0.00017808,2]
[329878474,1718782250652,-500.0,0.00017808,2]
[329878475,1718782250661,-1112.81,0.00017808,2]
[329878476,1718782250670,-2904.57,0.00017808,2]
[329878477,1718782250679,-2365.03,0.00017808,2]
[329878478,1718782250688,-1306.06068608,0.00018,2]
[329878479,1718782250697,-825.44569832,0.00018,2]
[329878480,1718782250706,-477.09395427,0.00018,2]
[329878481,1718782250715,-154.81422293,0.00018,2]
[329878482,1718782250725,-1783.1366104,0.00018,2]
[329878483,1718782250734,-1000.0,0.00018,18]
[329878484,1718782250743,-420.0,0.0001808,2]
[329878485,1718782250752,-500.0,0.00018082,2]
[329878486,1718782250761,-500.0,0.00018082,2]
[329878487,1718782250772,-500.0,0.00018082,2]
[329878488,1718782250781,-3125.31,0.00018082,2]
[329878489,1718782250791,-716.65,0.00018082,2]
[329878490,1718782250800,-500.0,0.00018082,2]
[329878491,1718782250809,-500.0,0.00018082,2]
[329878492,1718782250818,-823.36,0.00018082,2]
[329878493,1718782250827,-4893.68,0.00018082,2]
[329878494,1718782250836,-557.39,0.00018082,2]
[329878495,1718782250845,-500.0,0.00018082,2]
[329878496,1718782250854,-723.02,0.00018082,2]
[329878497,1718782250863,-770.09,0.00018082,2]
[329878498,1718782250872,-500.0,0.00018082,2]
[329878499,1718782250881,-500.0,0.00018082,2]
[329878500,1718782250890,-549.85457142,0.00018082,2]
[329878501,1718782250898,-1112.81,0.00018082,2]
[329878502,1718782250907,-2904.57,0.00018082,2]
[329878503,1718782250916,-2365.03,0.00018082,2]
[329878504,1718782250925,-2000.0,0.00018256,2]
[329878505,1718782250934,-500.0,0.00018356,2]
[329878506,1718782250943,-500.0,0.00018356,2]
[329878507,1718782250952,-500.0,0.00018356,2]
[329878508,1718782250967,-3125.31,0.00018356,2]
[329878509,1718782250977,-716.65,0.00018356,2]
[329878510,1718782250986,-500.0,0.00018356,2]
[329878511,1718782250995,-500.0,0.00018356,2]
[329878512,1718782251005,-823.36,0.00018356,2]
[329878513,1718782251014,-4893.68,0.00018356,2]
[329878514,1718782251027,-192.231616,0.00018356,2]
[329878515,1718782251036,-500.0,0.00018356,2]
[329878516,1718782251047,-723.02,0.00018356,2]
[329878517,1718782251057,-770.09,0.00018356,2]
[329878518,1718782251066,-500.0,0.00018356,2]
[329878519,1718782251076,-500.0,0.00018356,2]
[329878520,1718782251086,-1112.81,0.00018356,2]
[329878521,1718782251095,-2904.57,0.00018356,2]
[329878522,1718782251105,-2365.03,0.00018356,2]
[329878523,1718782251114,-620.00002217,0.0001859,2]
[329878524,1718782251124,-500.0,0.0001863,2]
[329878525,1718782251133,-500.0,0.0001863,2]
[329878526,1718782251143,-500.0,0.0001863,2]
[329878527,1718782251152,-3125.31,0.0001863,2]
[329878528,1718782251161,-716.65,0.0001863,2]
[329878529,1718782251170,-500.0,0.0001863,2]
[329878530,1718782251179,-500.0,0.0001863,2]
[329878531,1718782251188,-823.36,0.0001863,2]
[329878532,1718782251197,-4893.68,0.0001863,2]
[329878533,1718782251207,-500.0,0.0001863,2]
[329878534,1718782251216,-723.02,0.0001863,2]
[329878535,1718782251225,-770.09,0.0001863,2]
[329878536,1718782251234,-500.0,0.0001863,2]
[329878537,1718782251243,-500.0,0.0001863,2]
[329878538,1718782251252,-1112.81,0.0001863,2]
[329878539,1718782251262,-2904.57,0.0001863,2]